[Event "Early-Titled-Tuesday-Blitz-May-14-2024"]
[Site "Chess.com"]
[Date "2024.05.14"]
[Round "10"]
[White "Cherepov_Alexej"]
[Black "ChadBiryani"]
[Result "0-1"]
[WhiteElo "2425"]
[BlackElo "2547"]
[TimeControl "180+1"]
[EndTime "9:58:33 PDT"]
[Termination "ChadBiryani won on time"]

1. d4 {[%clk 0:02:59.2]} 1... Nf6 {[%clk 0:02:54.8]} 2. c4 {[%clk 0:02:59.1]}
2... g6 {[%clk 0:02:55]} 3. Nc3 {[%clk 0:02:58.3]} 3... Bg7 {[%clk 0:02:55.6]}
4. e4 {[%clk 0:02:58.5]} 4... d6 {[%clk 0:02:56.1]} 5. Be2 {[%clk 0:02:58.8]}
5... O-O {[%clk 0:02:56.2]} 6. Bg5 {[%clk 0:02:59.2]} 6... Nbd7 {[%clk
0:02:50.3]} 7. Qd2 {[%clk 0:02:57.3]} 7... c6 {[%clk 0:02:46]} 8. Nf3 {[%clk
0:02:54.6]} 8... a5 {[%clk 0:02:39.9]} 9. O-O {[%clk 0:02:53.9]} 9... Qc7 {[%clk
0:02:36.7]} 10. Rad1 {[%clk 0:02:48.5]} 10... e5 {[%clk 0:02:28.4]} 11. Bh6
{[%clk 0:02:45.2]} 11... exd4 {[%clk 0:02:25.5]} 12. Nxd4 {[%clk 0:02:44.3]}
12... Nc5 {[%clk 0:02:22.5]} 13. Bxg7 {[%clk 0:02:42.1]} 13... Kxg7 {[%clk
0:02:22.7]} 14. f3 {[%clk 0:02:30.5]} 14... h6 {[%clk 0:02:18.5]} 15. Qf4 {[%clk
0:02:24.4]} 15... Nh5 {[%clk 0:02:14.7]} 16. Qh4 {[%clk 0:02:17.6]} 16... Qd8
{[%clk 0:02:11.3]} 17. Qxd8 {[%clk 0:02:05.3]} 17... Rxd8 {[%clk 0:02:12.2]} 18.
g3 {[%clk 0:02:05.2]} 18... Kg8 {[%clk 0:02:07.1]} 19. f4 {[%clk 0:02:04.2]}
19... Ng7 {[%clk 0:02:07.5]} 20. Nb3 {[%clk 0:02:00.5]} 20... Nce6 {[%clk
0:01:45]} 21. Rd2 {[%clk 0:01:56.6]} 21... a4 {[%clk 0:01:42.2]} 22. Nd4 {[%clk
0:01:56.5]} 22... Nc5 {[%clk 0:01:39.2]} 23. Rfd1 {[%clk 0:01:55.1]} 23... Re8
{[%clk 0:01:38.1]} 24. Bf3 {[%clk 0:01:51.1]} 24... Nge6 {[%clk 0:01:18.4]} 25.
Nxe6 {[%clk 0:01:48.1]} 25... Bxe6 {[%clk 0:01:19.3]} 26. Be2 {[%clk 0:01:41.5]}
26... Bh3 {[%clk 0:01:12.8]} 27. Bf3 {[%clk 0:01:32.6]} 27... Be6 {[%clk
0:01:11.8]} 28. Rxd6 {[%clk 0:01:13]} 28... Bxc4 {[%clk 0:01:11.1]} 29. e5
{[%clk 0:01:13]} 29... Kf8 {[%clk 0:00:54.9]} 30. h4 {[%clk 0:01:12.8]} 30... h5
{[%clk 0:00:40.8]} 31. Kg2 {[%clk 0:01:09]} 31... Be6 {[%clk 0:00:29.9]} 32. a3
{[%clk 0:01:04.6]} 32... Ke7 {[%clk 0:00:25.8]} 33. Kf2 {[%clk 0:01:04.5]} 33...
Rad8 {[%clk 0:00:23.5]} 34. Ke3 {[%clk 0:01:04.5]} 34... Rxd6 {[%clk 0:00:23.3]}
35. exd6+ {[%clk 0:00:54.8]} 35... Kd7 {[%clk 0:00:19.6]} 36. Kf2 {[%clk
0:00:42]} 36... Bf5 {[%clk 0:00:16.4]} 37. Rd4 {[%clk 0:00:34.1]} 37... b5
{[%clk 0:00:14.3]} 38. Be2 {[%clk 0:00:31.3]} 38... Re6 {[%clk 0:00:13.2]} 39.
Nxb5 {[%clk 0:00:22.6]} 39... cxb5 {[%clk 0:00:12.1]} 40. Bxb5+ {[%clk
0:00:23.5]} 40... Kd8 {[%clk 0:00:12.6]} 41. d7 {[%clk 0:00:19.8]} 41... Ne4+
{[%clk 0:00:10.7]} 42. Kg2 {[%clk 0:00:17.7]} 42... Rd6 {[%clk 0:00:09.2]} 43.
Rc4 {[%clk 0:00:15.9]} 43... Rd2+ {[%clk 0:00:04.7]} 44. Kg1 {[%clk 0:00:14.3]}
44... Bxd7 {[%clk 0:00:04.2]} 45. Bxd7 {[%clk 0:00:13.3]} 45... Nxg3 {[%clk
0:00:03]} 46. Bxa4 {[%clk 0:00:10.8]} 46... Rxb2 {[%clk 0:00:03.1]} 47. f5
{[%clk 0:00:07.8]} 47... Nxf5 {[%clk 0:00:03]} 48. Bc2 {[%clk 0:00:06.1]} 48...
Ne3 {[%clk 0:00:02.5]} 49. Rd4+ {[%clk 0:00:05.9]} 49... Kc7 {[%clk 0:00:03.2]}
50. Be4 {[%clk 0:00:04.8]} 50... Ng4 {[%clk 0:00:02.6]} 51. a4 {[%clk
0:00:04.6]} 51... Kb6 {[%clk 0:00:02.8]} 52. Rd7 {[%clk 0:00:03.5]} 52... f5
{[%clk 0:00:02.7]} 53. Bf3 {[%clk 0:00:03]} 53... Ne5 {[%clk 0:00:02.4]} 54.
Rd6+ {[%clk 0:00:02.6]} 54... Kc7 {[%clk 0:00:01.9]} 55. Re6 {[%clk 0:00:01.5]}
55... Nxf3+ {[%clk 0:00:02.1]} 56. Kf1 {[%clk 0:00:01.6]} 56... Nxh4 {[%clk
0:00:02.8]} 57. a5 {[%clk 0:00:00.4]} 57... Kd7 {[%clk 0:00:03]} 0-1

[Event "Early-Titled-Tuesday-Blitz-May-14-2024"]
[Site "Chess.com"]
[Date "2024.05.14"]
[Round "10"]
[White "valik3504"]
[Black "ChessQueen"]
[Result "0-1"]
[WhiteElo "2569"]
[BlackElo "2783"]
[TimeControl "180+1"]
[EndTime "9:58:38 PDT"]
[Termination "ChessQueen won by checkmate"]

1. d4 {[%clk 0:03:00.9]} 1... Nf6 {[%clk 0:02:59.8]} 2. Nf3 {[%clk 0:03:01.1]}
2... d5 {[%clk 0:02:58.6]} 3. c4 {[%clk 0:02:59.5]} 3... e6 {[%clk 0:02:59]} 4.
e3 {[%clk 0:02:59.8]} 4... Bb4+ {[%clk 0:02:55.5]} 5. Nbd2 {[%clk 0:02:59.8]}
5... O-O {[%clk 0:02:54.3]} 6. a3 {[%clk 0:02:57.7]} 6... Be7 {[%clk 0:02:53.9]}
7. b4 {[%clk 0:02:58.1]} 7... a5 {[%clk 0:02:52.5]} 8. b5 {[%clk 0:02:58.4]}
8... c5 {[%clk 0:02:51.2]} 9. bxc6 {[%clk 0:02:54.5]} 9... Nxc6 {[%clk
0:02:49.8]} 10. Be2 {[%clk 0:02:51.8]} 10... dxc4 {[%clk 0:02:40.8]} 11. Bxc4
{[%clk 0:02:50.9]} 11... b6 {[%clk 0:02:35.7]} 12. O-O {[%clk 0:02:49]} 12...
Bb7 {[%clk 0:02:35.9]} 13. Bb2 {[%clk 0:02:42.7]} 13... Rc8 {[%clk 0:02:33.8]}
14. Qe2 {[%clk 0:02:42.7]} 14... Rc7 {[%clk 0:02:30.6]} 15. Rfc1 {[%clk
0:02:42]} 15... Qa8 {[%clk 0:02:30.1]} 16. Bb5 {[%clk 0:02:28.2]} 16... Rfc8
{[%clk 0:02:21.7]} 17. Nc4 {[%clk 0:02:28.3]} 17... Qa7 {[%clk 0:02:07.8]} 18.
Nfe5 {[%clk 0:02:12.6]} 18... Nb8 {[%clk 0:01:53.5]} 19. f3 {[%clk 0:02:05.4]}
19... Ba6 {[%clk 0:01:52.9]} 20. Nd2 {[%clk 0:01:58.8]} 20... Rxc1+ {[%clk
0:01:48.1]} 21. Rxc1 {[%clk 0:01:59.7]} 21... Rxc1+ {[%clk 0:01:47.9]} 22. Bxc1
{[%clk 0:02:00.6]} 22... Qc7 {[%clk 0:01:47.9]} 23. Qc4 {[%clk 0:01:48.1]} 23...
Qxc4 {[%clk 0:01:47.5]} 24. Bxc4 {[%clk 0:01:48.3]} 24... Bb7 {[%clk 0:01:26.9]}
25. Bb2 {[%clk 0:01:24.9]} 25... Nc6 {[%clk 0:01:19.2]} 26. Nd3 {[%clk
0:01:22.9]} 26... Na7 {[%clk 0:01:12.5]} 27. e4 {[%clk 0:01:05.7]} 27... b5
{[%clk 0:01:12.6]} 28. Bb3 {[%clk 0:01:04.5]} 28... a4 {[%clk 0:01:06]} 29. Ba2
{[%clk 0:01:04.5]} 29... Nd7 {[%clk 0:01:06]} 30. Nb1 {[%clk 0:00:57.7]} 30...
Nc6 {[%clk 0:01:01.8]} 31. Bc3 {[%clk 0:00:53.6]} 31... Kf8 {[%clk 0:00:54.9]}
32. Kf2 {[%clk 0:00:53.3]} 32... Bd6 {[%clk 0:00:38.7]} 33. f4 {[%clk
0:00:32.7]} 33... Bc7 {[%clk 0:00:35.3]} 34. Nd2 {[%clk 0:00:26]} 34... Bb6
{[%clk 0:00:35.2]} 35. Nf3 {[%clk 0:00:26.2]} 35... Ke7 {[%clk 0:00:34.3]} 36.
Nb4 {[%clk 0:00:23.5]} 36... Ndb8 {[%clk 0:00:32.7]} 37. Ke2 {[%clk 0:00:18.6]}
37... f6 {[%clk 0:00:32.7]} 38. d5 {[%clk 0:00:18.6]} 38... Nd8 {[%clk
0:00:24.2]} 39. e5 {[%clk 0:00:15]} 39... exd5 {[%clk 0:00:22.6]} 40. Bxd5
{[%clk 0:00:13.6]} 40... Bc8 {[%clk 0:00:19.8]} 41. Be4 {[%clk 0:00:09.3]} 41...
Bc5 {[%clk 0:00:20]} 42. Bd3 {[%clk 0:00:09.1]} 42... Nbc6 {[%clk 0:00:15.8]}
43. Nd5+ {[%clk 0:00:05.6]} 43... Kf7 {[%clk 0:00:13.8]} 44. Bxb5 {[%clk
0:00:05.7]} 44... Bxa3 {[%clk 0:00:13.9]} 45. Bxa4 {[%clk 0:00:05.7]} 45... Ba6+
{[%clk 0:00:13.9]} 46. Kf2 {[%clk 0:00:05.8]} 46... Bc4 {[%clk 0:00:13.7]} 47.
Ne3 {[%clk 0:00:03]} 47... Bc5 {[%clk 0:00:13.7]} 48. Nd2 {[%clk 0:00:02.7]}
48... Bd3 {[%clk 0:00:12.9]} 49. Kf3 {[%clk 0:00:03.1]} 49... fxe5 {[%clk
0:00:12.1]} 50. Bb3+ {[%clk 0:00:02.9]} 50... Ke8 {[%clk 0:00:12]} 51. fxe5
{[%clk 0:00:03.3]} 51... Bg6 {[%clk 0:00:11.8]} 52. Ng4 {[%clk 0:00:03.3]} 52...
Bf7 {[%clk 0:00:11.5]} 53. Ba4 {[%clk 0:00:02.7]} 53... Bd5+ {[%clk 0:00:11.1]}
54. Kg3 {[%clk 0:00:03]} 54... Ke7 {[%clk 0:00:11.2]} 55. Nf3 {[%clk 0:00:03.1]}
55... h5 {[%clk 0:00:10.5]} 56. Nf2 {[%clk 0:00:01.3]} 56... Ne6 {[%clk
0:00:11.1]} 57. Nd3 {[%clk 0:00:01.5]} 57... Be3 {[%clk 0:00:10.5]} 58. Kh4
{[%clk 0:00:02.1]} 58... g6 {[%clk 0:00:09.6]} 59. Nb4 {[%clk 0:00:01.5]} 59...
Nxb4 {[%clk 0:00:08.9]} 60. Bxb4+ {[%clk 0:00:02.4]} 60... Kf7 {[%clk
0:00:09.6]} 61. Bd6 {[%clk 0:00:03]} 61... Bf2+ {[%clk 0:00:08.7]} 62. Kh3
{[%clk 0:00:02.7]} 62... Nf4# {[%clk 0:00:08.7]} 0-1

[Event "Early-Titled-Tuesday-Blitz-May-14-2024"]
[Site "Chess.com"]
[Date "2024.05.14"]
[Round "10"]
[White "Bilan_Danila"]
[Black "maximnovik"]
[Result "0-1"]
[WhiteElo "2640"]
[BlackElo "2554"]
[TimeControl "180+1"]
[EndTime "9:58:40 PDT"]
[Termination "maximnovik won on time"]

1. d4 {[%clk 0:03:00.9]} 1... Nf6 {[%clk 0:02:55.7]} 2. Nf3 {[%clk 0:03:00.4]}
2... g6 {[%clk 0:02:55.8]} 3. Bg5 {[%clk 0:03:00.4]} 3... Bg7 {[%clk 0:02:55.8]}
4. c3 {[%clk 0:03:01.1]} 4... O-O {[%clk 0:02:53]} 5. Nbd2 {[%clk 0:03:01.3]}
5... d6 {[%clk 0:02:51.3]} 6. e4 {[%clk 0:03:01.8]} 6... Nbd7 {[%clk 0:02:50.3]}
7. Bc4 {[%clk 0:02:56.8]} 7... h6 {[%clk 0:02:49.5]} 8. Bh4 {[%clk 0:02:56.7]}
8... e5 {[%clk 0:02:49.5]} 9. dxe5 {[%clk 0:02:56.8]} 9... Nxe5 {[%clk
0:02:47.5]} 10. Nxe5 {[%clk 0:02:56.9]} 10... dxe5 {[%clk 0:02:47.7]} 11. O-O
{[%clk 0:02:57]} 11... Qe7 {[%clk 0:02:43.1]} 12. Qc2 {[%clk 0:02:52.5]} 12...
Be6 {[%clk 0:02:40.7]} 13. Rad1 {[%clk 0:02:51.2]} 13... Rfd8 {[%clk 0:02:38.7]}
14. Bxf6 {[%clk 0:02:45.7]} 14... Bxf6 {[%clk 0:02:38.2]} 15. Qb3 {[%clk
0:02:42.8]} 15... Bxc4 {[%clk 0:02:26.8]} 16. Nxc4 {[%clk 0:02:43.7]} 16... c6
{[%clk 0:02:26.5]} 17. Rxd8+ {[%clk 0:02:35.3]} 17... Rxd8 {[%clk 0:02:25.9]}
18. Rd1 {[%clk 0:02:35.9]} 18... Rxd1+ {[%clk 0:02:22.3]} 19. Qxd1 {[%clk
0:02:36.8]} 19... Qe6 {[%clk 0:02:21.4]} 20. b3 {[%clk 0:02:13.3]} 20... Be7
{[%clk 0:02:19.3]} 21. Qd2 {[%clk 0:02:02.6]} 21... Kg7 {[%clk 0:02:17.8]} 22.
Qe3 {[%clk 0:01:56.9]} 22... b6 {[%clk 0:02:10]} 23. Qg3 {[%clk 0:01:46.2]}
23... Bd6 {[%clk 0:02:01.1]} 24. Qd3 {[%clk 0:01:38]} 24... Bc5 {[%clk
0:02:00.8]} 25. b4 {[%clk 0:01:24.2]} 25... b5 {[%clk 0:01:57]} 26. Nd2 {[%clk
0:00:59.7]} 26... Bb6 {[%clk 0:01:54.1]} 27. Nb3 {[%clk 0:01:00.4]} 27... f5
{[%clk 0:01:36.9]} 28. g3 {[%clk 0:00:56.1]} 28... fxe4 {[%clk 0:01:32.4]} 29.
Qxe4 {[%clk 0:00:45.7]} 29... Qd5 {[%clk 0:01:31.7]} 30. Qg4 {[%clk 0:00:31.3]}
30... e4 {[%clk 0:01:30.9]} 31. Qf4 {[%clk 0:00:18.8]} 31... Qf5 {[%clk
0:01:16.2]} 32. Qxf5 {[%clk 0:00:11.9]} 32... gxf5 {[%clk 0:01:16.3]} 33. Kf1
{[%clk 0:00:10.7]} 33... Kf6 {[%clk 0:01:13.6]} 34. Ke2 {[%clk 0:00:11.1]} 34...
Ke5 {[%clk 0:01:10.8]} 35. f3 {[%clk 0:00:11.5]} 35... h5 {[%clk 0:01:05.6]} 36.
h3 {[%clk 0:00:05.9]} 36... Bg1 {[%clk 0:00:57.3]} 37. g4 {[%clk 0:00:05.4]}
37... exf3+ {[%clk 0:00:55.5]} 38. Kxf3 {[%clk 0:00:05.7]} 38... fxg4+ {[%clk
0:00:55.7]} 39. hxg4 {[%clk 0:00:06.6]} 39... h4 {[%clk 0:00:56.1]} 40. Na5
{[%clk 0:00:05.8]} 40... c5 {[%clk 0:00:55.7]} 41. bxc5 {[%clk 0:00:04.8]} 41...
Bxc5 {[%clk 0:00:54]} 42. Nc6+ {[%clk 0:00:05.7]} 42... Kd6 {[%clk 0:00:50.9]}
43. Nd8 {[%clk 0:00:04.7]} 43... Kd5 {[%clk 0:00:45.6]} 44. g5 {[%clk
0:00:03.4]} 44... Be7 {[%clk 0:00:44.1]} 45. Nf7 {[%clk 0:00:03.8]} 45... Ke6
{[%clk 0:00:44.3]} 46. g6 {[%clk 0:00:04.5]} 46... Kf6 {[%clk 0:00:44.6]} 47.
Kg4 {[%clk 0:00:03.7]} 47... Kxg6 {[%clk 0:00:41.7]} 48. Ne5+ {[%clk 0:00:04.2]}
48... Kf6 {[%clk 0:00:39.4]} 49. Nc6 {[%clk 0:00:04.4]} 49... a6 {[%clk
0:00:35.6]} 50. Kxh4 {[%clk 0:00:04.8]} 50... Ke6+ {[%clk 0:00:35.1]} 51. Kg4
{[%clk 0:00:05.1]} 51... Bc5 {[%clk 0:00:33.8]} 52. Kf3 {[%clk 0:00:04.1]} 52...
Kd5 {[%clk 0:00:34.1]} 53. Na5 {[%clk 0:00:03.3]} 53... Bb6 {[%clk 0:00:33.3]}
54. Nb3 {[%clk 0:00:02.1]} 54... Kc4 {[%clk 0:00:34.2]} 55. Ke2 {[%clk
0:00:02.5]} 55... Kxc3 {[%clk 0:00:34.5]} 56. Kd1 {[%clk 0:00:02.6]} 56... Kb2
{[%clk 0:00:34.8]} 57. Nc1 {[%clk 0:00:03.4]} 57... Bd8 {[%clk 0:00:33.3]} 58.
Nd3+ {[%clk 0:00:02.8]} 58... Kc3 {[%clk 0:00:30.6]} 59. Nc1 {[%clk 0:00:02.7]}
59... Bg5 {[%clk 0:00:29]} 60. Nb3 {[%clk 0:00:02.6]} 60... Be3 {[%clk
0:00:27.7]} 61. Ke2 {[%clk 0:00:02.6]} 61... Bb6 {[%clk 0:00:27.6]} 62. Kd1
{[%clk 0:00:02.7]} 62... Kb2 {[%clk 0:00:27.9]} 63. Nc1 {[%clk 0:00:03.3]} 63...
a5 {[%clk 0:00:27.3]} 64. Kd2 {[%clk 0:00:03.8]} 64... Be3+ {[%clk 0:00:26.6]}
65. Kxe3 {[%clk 0:00:03.5]} 65... Kxc1 {[%clk 0:00:27]} 66. Kd3 {[%clk
0:00:03.7]} 66... Kb2 {[%clk 0:00:27.1]} 0-1

[Event "Early-Titled-Tuesday-Blitz-May-14-2024"]
[Site "Chess.com"]
[Date "2024.05.14"]
[Round "10"]
[White "JJDAREK"]
[Black "NMChessToImpress"]
[Result "1-0"]
[WhiteElo "2376"]
[BlackElo "2263"]
[TimeControl "180+1"]
[EndTime "9:58:42 PDT"]
[Termination "JJDAREK won by resignation"]

1. d4 {[%clk 0:03:00.9]} 1... e6 {[%clk 0:02:59.5]} 2. Nf3 {[%clk 0:02:57.1]}
2... Nf6 {[%clk 0:02:59.8]} 3. c4 {[%clk 0:02:56]} 3... d5 {[%clk 0:02:59.6]} 4.
g3 {[%clk 0:02:55.7]} 4... Be7 {[%clk 0:02:59.4]} 5. Bg2 {[%clk 0:02:55.3]} 5...
O-O {[%clk 0:03:00]} 6. O-O {[%clk 0:02:55.7]} 6... dxc4 {[%clk 0:03:00.6]} 7.
Qa4 {[%clk 0:02:55.7]} 7... a6 {[%clk 0:02:57.6]} 8. Qxc4 {[%clk 0:02:54.9]}
8... b5 {[%clk 0:02:57.6]} 9. Qc2 {[%clk 0:02:55.5]} 9... Bb7 {[%clk 0:02:57.8]}
10. Bd2 {[%clk 0:02:54]} 10... Ra7 {[%clk 0:02:51.6]} 11. Rd1 {[%clk 0:02:43.3]}
11... Nc6 {[%clk 0:02:49.7]} 12. Bg5 {[%clk 0:02:22]} 12... Qa8 {[%clk
0:02:33.4]} 13. Ne1 {[%clk 0:01:42.9]} 13... Rd8 {[%clk 0:02:08.5]} 14. e3
{[%clk 0:01:38.3]} 14... Nb4 {[%clk 0:01:58.6]} 15. Qe2 {[%clk 0:01:10.8]} 15...
Bxg2 {[%clk 0:01:19.3]} 16. Nxg2 {[%clk 0:01:11.7]} 16... c5 {[%clk 0:01:19.5]}
17. dxc5 {[%clk 0:00:58.5]} 17... Rxd1+ {[%clk 0:01:08.6]} 18. Qxd1 {[%clk
0:00:59.4]} 18... Rd7 {[%clk 0:01:08.6]} 19. Qe2 {[%clk 0:00:50.9]} 19... Bxc5
{[%clk 0:00:51.2]} 20. Bxf6 {[%clk 0:00:49.1]} 20... gxf6 {[%clk 0:00:51.8]} 21.
Nc3 {[%clk 0:00:47.1]} 21... f5 {[%clk 0:00:44.8]} 22. Nf4 {[%clk 0:00:44.1]}
22... Bf8 {[%clk 0:00:36.2]} 23. a3 {[%clk 0:00:40.6]} 23... Nc6 {[%clk
0:00:32.8]} 24. Rd1 {[%clk 0:00:34.4]} 24... Qd8 {[%clk 0:00:30.1]} 25. Rxd7
{[%clk 0:00:32.9]} 25... Qxd7 {[%clk 0:00:31]} 26. Qd3 {[%clk 0:00:20.4]} 26...
Ne5 {[%clk 0:00:27.2]} 27. Qxd7 {[%clk 0:00:19.8]} 27... Nxd7 {[%clk 0:00:28.1]}
28. Kf1 {[%clk 0:00:19.9]} 28... Bg7 {[%clk 0:00:25.2]} 29. Nd1 {[%clk
0:00:17.2]} 29... Nc5 {[%clk 0:00:24.5]} 30. Ke2 {[%clk 0:00:17.1]} 30... Na4
{[%clk 0:00:22.1]} 31. b3 {[%clk 0:00:17.1]} 31... Nb2 {[%clk 0:00:20.5]} 32.
Nxb2 {[%clk 0:00:16.2]} 32... Bxb2 {[%clk 0:00:21.4]} 33. a4 {[%clk 0:00:16.8]}
33... Kf8 {[%clk 0:00:19.2]} 34. Kd3 {[%clk 0:00:16.6]} 34... Ke7 {[%clk
0:00:18.8]} 35. axb5 {[%clk 0:00:17]} 35... axb5 {[%clk 0:00:18.7]} 36. Ne2
{[%clk 0:00:15.4]} 36... Kd6 {[%clk 0:00:17]} 37. f3 {[%clk 0:00:14.9]} 37...
Kc5 {[%clk 0:00:15.7]} 38. Kc2 {[%clk 0:00:14.3]} 38... Bf6 {[%clk 0:00:13.9]}
39. h3 {[%clk 0:00:13.3]} 39... Kb4 {[%clk 0:00:13.4]} 40. Nc1 {[%clk
0:00:13.5]} 40... Kc5 {[%clk 0:00:10.7]} 41. Nd3+ {[%clk 0:00:13.6]} 41... Kd5
{[%clk 0:00:09.8]} 42. Kd2 {[%clk 0:00:14]} 42... Be7 {[%clk 0:00:09.3]} 43. Kc3
{[%clk 0:00:13.2]} 43... Bd6 {[%clk 0:00:08.9]} 44. g4 {[%clk 0:00:12.7]} 44...
fxg4 {[%clk 0:00:07.6]} 45. hxg4 {[%clk 0:00:11.1]} 45... f5 {[%clk 0:00:08.3]}
46. g5 {[%clk 0:00:09.5]} 46... e5 {[%clk 0:00:06.8]} 47. Nf2 {[%clk 0:00:05.4]}
47... Be7 {[%clk 0:00:05.2]} 48. e4+ {[%clk 0:00:05.6]} 48... Kc5 {[%clk
0:00:04.4]} 49. exf5 {[%clk 0:00:04.8]} 49... b4+ {[%clk 0:00:04.6]} 50. Kd3
{[%clk 0:00:04.6]} 50... Kd5 {[%clk 0:00:04.8]} 51. Ne4 {[%clk 0:00:04.4]} 51...
Bd8 {[%clk 0:00:03.8]} 52. g6 {[%clk 0:00:04.8]} 52... hxg6 {[%clk 0:00:03.4]}
53. fxg6 {[%clk 0:00:05.7]} 53... Ke6 {[%clk 0:00:03.9]} 54. g7 {[%clk 0:00:06]}
54... Kf7 {[%clk 0:00:04]} 55. Nd6+ {[%clk 0:00:05.2]} 55... Kxg7 {[%clk
0:00:03.7]} 56. Nb5 {[%clk 0:00:04.8]} 56... Kf6 {[%clk 0:00:03.1]} 57. Ke4
{[%clk 0:00:05.2]} 57... Ke6 {[%clk 0:00:02.7]} 58. Na7 {[%clk 0:00:04.1]} 58...
Bb6 {[%clk 0:00:02]} 59. Nc8 {[%clk 0:00:04.2]} 59... Kd7 {[%clk 0:00:01.8]} 60.
Nxb6+ {[%clk 0:00:03.4]} 60... Kc6 {[%clk 0:00:02.7]} 61. Nc4 {[%clk 0:00:03.9]}
61... Kc5 {[%clk 0:00:03]} 62. Nxe5 {[%clk 0:00:04.3]} 1-0

[Event "Early-Titled-Tuesday-Blitz-May-14-2024"]
[Site "Chess.com"]
[Date "2024.05.14"]
[Round "10"]
[White "laiciffOneslraCsungaM"]
[Black "AlphaGoosee"]
[Result "1/2-1/2"]
[WhiteElo "2423"]
[BlackElo "2608"]
[TimeControl "180+1"]
[EndTime "9:58:43 PDT"]
[Termination "Game drawn by repetition"]

1. Nf3 {[%clk 0:03:00.9]} 1... d5 {[%clk 0:02:59.3]} 2. g3 {[%clk 0:03:01.2]}
2... Nf6 {[%clk 0:02:59.8]} 3. Bg2 {[%clk 0:03:01.6]} 3... c6 {[%clk 0:03:00.7]}
4. O-O {[%clk 0:03:02.2]} 4... Bg4 {[%clk 0:03:01.4]} 5. b3 {[%clk 0:03:02.6]}
5... Nbd7 {[%clk 0:03:01.7]} 6. Bb2 {[%clk 0:03:03.1]} 6... e6 {[%clk
0:03:02.3]} 7. d3 {[%clk 0:03:03.8]} 7... Be7 {[%clk 0:03:02.4]} 8. Nbd2 {[%clk
0:03:04.4]} 8... O-O {[%clk 0:03:01.9]} 9. h3 {[%clk 0:03:05]} 9... Bh5 {[%clk
0:03:01.6]} 10. c4 {[%clk 0:03:05.7]} 10... a5 {[%clk 0:03:01.2]} 11. a3 {[%clk
0:03:05.9]} 11... Bg6 {[%clk 0:02:56.4]} 12. Nh4 {[%clk 0:03:00]} 12... Bd6
{[%clk 0:02:54.1]} 13. Nxg6 {[%clk 0:02:58.4]} 13... hxg6 {[%clk 0:02:55]} 14.
e4 {[%clk 0:02:55.6]} 14... dxe4 {[%clk 0:02:46.1]} 15. dxe4 {[%clk 0:02:54.2]}
15... Be5 {[%clk 0:02:46]} 16. Qc2 {[%clk 0:02:51.4]} 16... Qb6 {[%clk
0:02:41.2]} 17. Kh2 {[%clk 0:02:40.2]} 17... Rfd8 {[%clk 0:02:39.5]} 18. Rad1
{[%clk 0:02:36.1]} 18... Bxb2 {[%clk 0:02:38.9]} 19. Qxb2 {[%clk 0:02:36.2]}
19... Nc5 {[%clk 0:02:38.8]} 20. Qc3 {[%clk 0:02:24.6]} 20... Rd3 {[%clk
0:02:37.3]} 21. Qc2 {[%clk 0:02:23.4]} 21... Rad8 {[%clk 0:02:36.3]} 22. e5
{[%clk 0:02:17]} 22... Ne8 {[%clk 0:02:21.2]} 23. Be4 {[%clk 0:02:08.9]} 23...
Nxe4 {[%clk 0:02:13]} 24. Nxe4 {[%clk 0:02:08.6]} 24... Qd4 {[%clk 0:02:09.1]}
25. Nd6 {[%clk 0:01:58.3]} 25... Rxd1 {[%clk 0:01:48.8]} 26. Rxd1 {[%clk
0:01:59.2]} 26... Qb6 {[%clk 0:01:35.4]} 27. c5 {[%clk 0:01:50]} 27... Qa7
{[%clk 0:01:34.4]} 28. b4 {[%clk 0:01:40.5]} 28... axb4 {[%clk 0:01:31.6]} 29.
axb4 {[%clk 0:01:41.4]} 29... Nc7 {[%clk 0:01:30.8]} 30. Nxf7 {[%clk 0:01:20.9]}
30... Rxd1 {[%clk 0:01:11.9]} 31. Qxd1 {[%clk 0:01:21.8]} 31... Nd5 {[%clk
0:01:10.6]} 32. Nd6 {[%clk 0:01:17.1]} 32... Qa2 {[%clk 0:01:05.5]} 33. Qf3
{[%clk 0:01:10.4]} 33... Qb2 {[%clk 0:01:03]} 34. Qf7+ {[%clk 0:01:02.8]} 34...
Kh7 {[%clk 0:01:00.4]} 35. Nxb7 {[%clk 0:00:40.2]} 35... Qxe5 {[%clk 0:00:58.1]}
36. Nd8 {[%clk 0:00:37.9]} 36... Nxb4 {[%clk 0:00:52.2]} 37. Nxe6 {[%clk
0:00:38]} 37... Qf6 {[%clk 0:00:46.5]} 38. Qxf6 {[%clk 0:00:23.7]} 38... gxf6
{[%clk 0:00:47.4]} 39. Kg2 {[%clk 0:00:24]} 39... Kg8 {[%clk 0:00:47.7]} 40. Kf3
{[%clk 0:00:20.9]} 40... Kf7 {[%clk 0:00:48.2]} 41. Nd4 {[%clk 0:00:19.4]} 41...
f5 {[%clk 0:00:46.4]} 42. h4 {[%clk 0:00:18.7]} 42... Kf6 {[%clk 0:00:46.8]} 43.
g4 {[%clk 0:00:17.2]} 43... Ke5 {[%clk 0:00:46.3]} 44. Ne2 {[%clk 0:00:14.3]}
44... Nd3 {[%clk 0:00:41.5]} 45. h5 {[%clk 0:00:12]} 45... fxg4+ {[%clk
0:00:41]} 46. Kxg4 {[%clk 0:00:12.1]} 46... gxh5+ {[%clk 0:00:41.2]} 47. Kxh5
{[%clk 0:00:13]} 47... Nxc5 {[%clk 0:00:41.7]} 48. f4+ {[%clk 0:00:12.9]} 48...
Ke4 {[%clk 0:00:39.9]} 49. f5 {[%clk 0:00:13.1]} 49... Nd7 {[%clk 0:00:37.8]}
50. Kg5 {[%clk 0:00:11]} 50... Ke5 {[%clk 0:00:35.3]} 51. Nc3 {[%clk 0:00:08.7]}
51... c5 {[%clk 0:00:35.2]} 52. Na4 {[%clk 0:00:08.8]} 52... c4 {[%clk 0:00:35]}
53. Nc3 {[%clk 0:00:09.5]} 53... Nf6 {[%clk 0:00:33]} 54. Kg6 {[%clk 0:00:09.4]}
54... Ng4 {[%clk 0:00:24.4]} 55. Kg5 {[%clk 0:00:09.2]} 55... Nf6 {[%clk
0:00:23.4]} 56. Kg6 {[%clk 0:00:09.4]} 56... Nd7 {[%clk 0:00:24]} 57. Kg5 {[%clk
0:00:09.5]} 57... Kd4 {[%clk 0:00:24.4]} 58. Nb5+ {[%clk 0:00:07.8]} 58... Kc5
{[%clk 0:00:24]} 59. Nc3 {[%clk 0:00:08.3]} 59... Kb4 {[%clk 0:00:24.1]} 60.
Nd5+ {[%clk 0:00:08.2]} 60... Kc5 {[%clk 0:00:21.4]} 61. Nc3 {[%clk 0:00:08.6]}
61... Kd4 {[%clk 0:00:12.4]} 62. Nb5+ {[%clk 0:00:08.8]} 62... Ke5 {[%clk
0:00:11.7]} 63. Nc3 {[%clk 0:00:09.4]} 1/2-1/2